fUST/lending_fUST_20250604
["ID","MTS","AMOUNT","RATE_DAILY","PERIOD"]
[364200079,1749039048939,-440.0,0.00016995,2]
[364200080,1749039048949,-125.72537315,0.00016995,2]
[364200199,1749039855553,164.259973,0.00013699,2]
[364200275,1749040123054,905.99999958,0.0002,120]
[364200319,1749040232674,-300.0,0.00015999,2]
[364200321,1749040232684,-300.0,0.00015999,2]
[364200323,1749040232693,-1200.0,0.00015999,2]
[364200325,1749040232702,-44615.0751673,0.00016,2]
[364200327,1749040232712,-1000.0,0.00016177,7]
[364200329,1749040232721,-630.68,0.00016438,2]
[364200331,1749040232730,-440.0,0.00016438,2]
[364200333,1749040232740,-440.0,0.00016438,2]
[364200335,1749040232749,-1157.86,0.00016438,2]
[364200337,1749040232759,-440.0,0.00016438,2]
[364200339,1749040232768,-440.0,0.00016438,2]
[364200341,1749040232777,-1222.61,0.00016438,2]
[364200343,1749040232787,-2230.4,0.00016438,2]
[364200345,1749040232796,-440.0,0.00016438,2]
[364200347,1749040232805,-440.0,0.00016438,2]
[364200349,1749040232815,-440.0,0.00016438,2]
[364200351,1749040232824,-440.0,0.00016438,2]
[364200353,1749040232834,-440.0,0.00016438,2]
[364200355,1749040232844,-440.0,0.00016438,2]
[364200357,1749040232853,-440.0,0.00016438,2]
[364200358,1749040232862,-430.0,0.00016438,2]
[364200360,1749040232871,-440.0,0.00016438,2]
[364200362,1749040232880,-440.0,0.00016438,2]
[364200364,1749040232890,-440.0,0.00016438,2]
[364200366,1749040232899,-440.0,0.00016438,2]
[364200368,1749040232908,-440.0,0.00016438,2]
[364200370,1749040232918,-440.0,0.00016438,2]
[364200372,1749040232927,-440.0,0.00016438,2]
[364200374,1749040232937,-440.0,0.00016438,2]
[364200377,1749040232947,-430.0,0.00016438,2]
[364200378,1749040232956,-626.59,0.00016438,2]
[364200380,1749040232965,-440.0,0.00016438,2]
[364200382,1749040232974,-440.0,0.00016438,2]
[364200384,1749040232983,-440.0,0.00016438,2]
[364200386,1749040232993,-440.0,0.00016438,2]
[364200388,1749040233002,-504.9152716,0.00016438,2]
[364200390,1749040233012,-440.0,0.00016438,2]
[364200392,1749040233022,-245.34928135,0.00016438,2]
[364200394,1749040233031,-440.0,0.00016438,2]
[364200396,1749040233040,-3119.9,0.00016438,2]
[364200398,1749040233049,-440.0,0.00016438,2]
[364200400,1749040233058,-440.0,0.00016438,2]
[364200402,1749040233068,-440.0,0.00016438,2]
[364200404,1749040233077,-440.0,0.00016438,2]
[364200406,1749040233087,-440.0,0.00016438,2]
[364200408,1749040233096,-166.0,0.00016438,3]
[364200410,1749040233106,-630.68,0.00016712,2]
[364200412,1749040233115,-440.0,0.00016712,2]
[364200414,1749040233125,-440.0,0.00016712,2]
[364200416,1749040233135,-1157.86,0.00016712,2]
[364200418,1749040233145,-440.0,0.00016712,2]
[364200420,1749040233155,-440.0,0.00016712,2]
[364200422,1749040233164,-1222.61,0.00016712,2]
[364200424,1749040233174,-2230.4,0.00016712,2]
[364200426,1749040233185,-440.0,0.00016712,2]
[364200428,1749040233197,-440.0,0.00016712,2]
[364200430,1749040233206,-440.0,0.00016712,2]
[364200432,1749040233216,-440.0,0.00016712,2]
[364200433,1749040233227,-440.0,0.00016712,2]
[364200436,1749040233237,-440.0,0.00016712,2]
[364200437,1749040233247,-420.0,0.00016712,2]
[364200439,1749040233258,-440.0,0.00016712,2]
[364200441,1749040233268,-440.0,0.00016712,2]
[364200444,1749040233281,-440.0,0.00016712,2]
[364200446,1749040233291,-440.0,0.00016712,2]
[364200447,1749040233301,-440.0,0.00016712,2]
[364200450,1749040233312,-440.0,0.00016712,2]
[364200451,1749040233324,-440.0,0.00016712,2]
[364200453,1749040233333,-230.0,0.00016712,2]
[364200455,1749040233343,-626.59,0.00016712,2]
[364200457,1749040233353,-440.0,0.00016712,2]
[364200459,1749040233363,-440.0,0.00016712,2]
[364200461,1749040233374,-440.0,0.00016712,2]
[364200463,1749040233384,-420.0,0.00016712,2]
[364200465,1749040233394,-440.0,0.00016712,2]
[364200467,1749040233405,-420.0,0.00016712,2]
[364200469,1749040233415,-3119.9,0.00016712,2]
[364200471,1749040233425,-440.0,0.00016712,2]
[364200473,1749040233435,-440.0,0.00016712,2]
[364200475,1749040233445,-440.0,0.00016712,2]
[364200477,1749040233454,-440.0,0.00016712,2]
[364200479,1749040233464,-440.0,0.00016712,2]
[364200481,1749040233473,-500.0,0.00016712,2]
[364200483,1749040233483,-1870.14188069,0.00016894,2]
[364200485,1749040233492,-866.1,0.00016984,3]
[364200487,1749040233503,-433.05,0.00016984,3]
[364200489,1749040233512,-216.52,0.00016984,3]
[364200491,1749040233521,-649.59,0.00016984,3]
[364200493,1749040233530,-630.68,0.00016986,2]
[364200495,1749040233539,-410.0,0.00016986,2]
[364200497,1749040233548,-440.0,0.00016986,2]
[364200499,1749040233557,-1157.86,0.00016986,2]
[364200501,1749040233569,-440.0,0.00016986,2]
[364200503,1749040233580,-440.0,0.00016986,2]
[364200505,1749040233590,-1222.61,0.00016986,2]
[364200507,1749040233600,-2230.4,0.00016986,2]
[364200509,1749040233612,-440.0,0.00016986,2]
[364200511,1749040233622,-440.0,0.00016986,2]
[364200514,1749040233632,-410.0,0.00016986,2]
[364200515,1749040233642,-440.0,0.00016986,2]
[364200517,1749040233652,-440.0,0.00016986,2]
[364200519,1749040233662,-440.0,0.00016986,2]
[364200521,1749040233671,-440.0,0.00016986,2]
[364200523,1749040233681,-440.0,0.00016986,2]
[364200525,1749040233691,-440.0,0.00016986,2]
[364200527,1749040233700,-440.0,0.00016986,2]
[364200529,1749040233710,-440.0,0.00016986,2]
[364200531,1749040233720,-410.0,0.00016986,2]
[364200533,1749040233729,-440.0,0.00016986,2]
[364200535,1749040233738,-626.59,0.00016986,2]
[364200537,1749040233748,-440.0,0.00016986,2]
[364200539,1749040233757,-440.0,0.00016986,2]
[364200541,1749040233767,-410.0,0.00016986,2]
[364200543,1749040233776,-440.0,0.00016986,2]
[364200545,1749040233786,-3119.9,0.00016986,2]
[364200546,1749040233796,-468.16965099,0.00016986,2]
[364200547,1749040233806,-440.0,0.00016986,2]
[364200548,1749040233816,-440.0,0.00016986,2]
[364200549,1749040233826,-440.0,0.00016986,2]
[364200550,1749040233836,-440.0,0.00016986,2]
[364200551,1749040233846,-430.0,0.00016993,2]
[364200552,1749040233856,-432.42692126,0.00016993,2]
[364200553,1749040233866,-440.0,0.00016993,2]
[364200554,1749040233876,-440.0,0.00016993,2]
[364200555,1749040233887,-440.0,0.00016993,2]
[364200556,1749040233898,-440.0,0.00016993,2]
[364200557,1749040233908,-190.50456212,0.00016993,2]
[364200558,1749040233918,-440.0,0.00016993,2]
[364200559,1749040233928,-440.0,0.00016993,2]
[364200560,1749040233938,-440.0,0.00016993,2]
[364200561,1749040233947,-440.0,0.00016993,2]
[364200562,1749040233956,-430.0,0.00016993,2]
[364200563,1749040233966,-440.0,0.00016993,2]
[364200564,1749040233976,-440.0,0.00016993,2]
[364200565,1749040233986,-440.0,0.00016993,2]
[364200566,1749040233996,-440.0,0.00016993,2]
[364200567,1749040234006,-440.0,0.00016993,2]
[364200568,1749040234016,-450.0,0.00016993,2]
[364200569,1749040234027,-440.0,0.00016993,2]
[364200571,1749040234166,-155.964,0.00016993,2]
[364200572,1749040234176,-440.0,0.00016993,2]
[364200574,1749040234187,-440.0,0.00016993,2]
[364200576,1749040234199,-1205.96,0.00016993,2]
[364200578,1749040234209,-440.0,0.00016993,2]
[364200580,1749040234219,-440.0,0.00016993,2]
[364200582,1749040234231,-430.0,0.00016993,2]
[364200584,1749040234242,-440.0,0.00016993,2]
[364200586,1749040234252,-440.0,0.00016993,2]
[364200588,1749040234262,-440.0,0.00016993,2]
[364200590,1749040234273,-440.0,0.00016993,2]
[364200592,1749040234283,-440.0,0.00016993,2]
[364200594,1749040234293,-430.0,0.00016993,2]
[364200596,1749040234303,-440.0,0.00016993,2]
[364200598,1749040234312,-440.0,0.00016993,2]
[364200600,1749040234324,-440.0,0.00016993,2]
[364200602,1749040234334,-440.0,0.00016993,2]
[364200604,1749040234345,-440.0,0.00016993,2]
[364200606,1749040234356,-440.0,0.00016993,2]
[364200608,1749040234366,-440.0,0.00016993,2]
[364200609,1749040234376,-440.0,0.00016993,2]
[364200611,1749040234386,-440.0,0.00016993,2]
[364200613,1749040234396,-440.0,0.00016993,2]
[364200615,1749040234406,-430.0,0.00016993,2]
[364200617,1749040234417,-430.0,0.00016993,2]
[364200619,1749040234426,-440.0,0.00016993,2]
[364200621,1749040234436,-440.0,0.00016993,2]
[364200623,1749040234447,-500.0,0.00016993,2]
[364200625,1749040234456,-440.0,0.00016993,2]
[364200627,1749040234466,-440.0,0.00016993,2]
[364200629,1749040234476,-372.761914,0.00016993,2]
[364200631,1749040234486,-440.0,0.00016993,2]
[364200633,1749040234495,-440.0,0.00016993,2]
[364200635,1749040234505,-440.0,0.00016993,2]
[364200637,1749040234515,-493.67666088,0.00016993,2]
[364200639,1749040234524,-377.7821237,0.00016993,2]
[364200641,1749040234534,-440.0,0.00016993,2]
[364200643,1749040234544,-440.0,0.00016993,2]
[364200645,1749040234554,-440.0,0.00016993,2]
[364200647,1749040234566,-430.0,0.00016993,2]
[364200649,1749040234577,-440.0,0.00016993,2]
[364200651,1749040234587,-430.0,0.00016993,2]
[364200653,1749040234596,-440.0,0.00016993,2]
[364200655,1749040234605,-639.52,0.00016993,2]
[364200657,1749040234615,-440.0,0.00016993,2]
[364200659,1749040234624,-440.0,0.00016993,2]
[364200661,1749040234633,-430.0,0.00016993,2]
[364200663,1749040234643,-440.0,0.00016993,2]
[364200665,1749040234651,-440.0,0.00016993,2]
[364200667,1749040234661,-430.0,0.00016993,2]
[364200669,1749040234670,-440.0,0.00016993,2]
[364200671,1749040234680,-430.0,0.00016993,2]
[364200673,1749040234689,-430.0,0.00016993,2]
[364200675,1749040234698,-440.0,0.00016993,2]
[364200677,1749040234707,-440.0,0.00016993,2]
[364200679,1749040234716,-440.0,0.00016993,2]
[364200681,1749040234725,-430.0,0.00016993,2]
[364200683,1749040234734,-420.96340995,0.00016993,2]
[364200685,1749040234743,-440.0,0.00016993,2]
[364200687,1749040234752,-440.0,0.00016993,2]
[364200689,1749040234762,-430.0,0.00016993,2]
[364200691,1749040234771,-430.0,0.00016993,2]
[364200693,1749040234780,-430.0,0.00016993,2]
[364200695,1749040234790,-440.0,0.00016993,2]
[364200697,1749040234799,-440.0,0.00016993,2]
[364200699,1749040234809,-390.0,0.00016993,2]
[364200701,1749040234818,-430.0,0.00016993,2]
[364200703,1749040234828,-430.0,0.00016993,2]
[364200705,1749040234837,-440.0,0.00016993,2]
[364200707,1749040234846,-440.0,0.00016993,2]
[364200709,1749040234855,-440.0,0.00016993,2]
[364200711,1749040234865,-470.0,0.00016993,2]
[364200713,1749040234874,-440.0,0.00016993,2]
[364200715,1749040234883,-440.0,0.00016993,2]
[364200717,1749040234892,-440.0,0.00016993,2]
[364200719,1749040234901,-430.0,0.00016993,2]
[364200721,1749040234909,-440.0,0.00016994,2]
[364200722,1749040234918,-189.31721537,0.00016994,2]
[364200723,1749040234928,-479.64,0.00016994,2]
[364200725,1749040234937,-405.91324875,0.00016994,2]
[364200726,1749040234946,-400.0,0.00016994,2]
[364200727,1749040234955,-424.41347965,0.00016994,2]
[364200728,1749040234963,-400.0,0.00016994,2]
[364200729,1749040234971,-403.88918931,0.00016994,2]
[364200730,1749040234979,-401.09140449,0.00016994,2]
[364200731,1749040234986,-401.02214523,0.00016994,2]
[364200732,1749040234994,-440.0,0.00016994,2]
[364200733,1749040235002,-406.5107476,0.00016994,2]
[364200734,1749040235011,-400.0,0.00016994,2]
[364200735,1749040235019,-440.0,0.00016994,2]
[364200736,1749040235028,-430.0,0.00016994,2]
[364200737,1749040235037,-430.0,0.00016994,2]
[364200738,1749040235043,-561.83503069,0.00016994,2]
[364200739,1749040235051,-400.0,0.00016994,2]
[364200740,1749040235060,-400.0,0.00016994,2]
[364200741,1749040235069,-440.0,0.00016994,2]
[364200742,1749040235079,-416.06911421,0.00016994,2]
[364200743,1749040235088,-430.0,0.00016994,2]
[364200744,1749040235097,-440.0,0.00016994,2]
[364200745,1749040235106,-400.0,0.00016994,2]
[364200746,1749040235116,-440.0,0.00016994,2]
[364200747,1749040235125,-440.0,0.00016994,2]
[364200748,1749040235135,-440.0,0.00016994,2]
[364200749,1749040235152,-400.0,0.00016994,2]
[364200750,1749040235165,-400.0,0.00016994,2]
[364200751,1749040235174,-435.40676977,0.00016994,2]
[364200752,1749040235186,-440.0,0.00016994,2]
[364200753,1749040235196,-298.79108871,0.00016994,2]
[364200754,1749040235206,-406.70531427,0.00016994,2]
[364200755,1749040235216,-302.65671009,0.00016994,2]
[364200756,1749040235227,-440.0,0.00016994,2]
[364200757,1749040235238,-307.45812481,0.00016994,2]
[364200758,1749040235249,-403.19112572,0.00016994,2]
[364200759,1749040235260,-400.0,0.00016994,2]
[364200760,1749040235272,-403.36382887,0.00016994,2]
[364200761,1749040235282,-430.0,0.00016994,2]
[364200762,1749040235292,-400.0,0.00016994,2]
[364200763,1749040235302,-440.0,0.00016994,2]
[364200764,1749040235312,-233.25082279,0.00016994,2]
[364200765,1749040235323,-400.0,0.00016994,2]
[364200766,1749040235334,-470.0,0.00016994,2]
[364200767,1749040235344,-440.0,0.00016994,2]
[364200768,1749040235354,-440.0,0.00016994,2]
[364200769,1749040235365,-440.0,0.00016994,2]
[364200770,1749040235375,-405.5798069,0.00016994,2]
[364200771,1749040235385,-364.46703473,0.00016994,2]
[364200772,1749040235394,-440.0,0.00016994,2]
[364200773,1749040235404,-440.0,0.00016994,2]
[364200774,1749040235414,-440.0,0.00016994,2]
[364200775,1749040235424,-331.50666071,0.00016994,2]
[364200776,1749040235434,-400.0,0.00016994,2]
[364200777,1749040235444,-440.0,0.00016994,2]
[364200778,1749040235456,-440.0,0.00016994,2]
[364200779,1749040235467,-440.0,0.00016994,2]
[364200780,1749040235477,-430.0,0.00016994,2]
[364200781,1749040235488,-440.0,0.00016994,2]
[364200782,1749040235499,-400.0,0.00016994,2]
[364200783,1749040235509,-426.63972116,0.00016994,2]
[364200784,1749040235518,-440.0,0.00016994,2]
[364200785,1749040235528,-430.0,0.00016994,2]
[364200786,1749040235538,-430.0,0.00016994,2]
[364200787,1749040235548,-370.0,0.00016994,2]
[364200788,1749040235558,-440.0,0.00016994,2]
[364200789,1749040235569,-440.0,0.00016994,2]
[364200790,1749040235579,-370.4987308,0.00016994,2]
[364200791,1749040235590,-440.0,0.00016994,2]
[364200792,1749040235600,-430.0,0.00016994,2]
[364200793,1749040235610,-440.0,0.00016994,2]
[364200794,1749040235620,-401.30912747,0.00016994,2]
[364200795,1749040235630,-430.0,0.00016994,2]
[364200796,1749040235640,-430.0,0.00016994,2]
[364200797,1749040235651,-440.0,0.00016994,2]
[364200798,1749040235662,-450.57450537,0.00016994,2]
[364200799,1749040235673,-440.0,0.00016994,2]
[364200800,1749040235683,-440.0,0.00016994,2]
[364200801,1749040235693,-284.17375692,0.00016994,2]
[364200802,1749040235703,-434.01316259,0.00016994,2]
[364200803,1749040235712,-440.0,0.00016994,2]
[364200804,1749040235722,-430.0,0.00016994,2]
[364200805,1749040235731,-430.0,0.00016994,2]
[364200806,1749040235742,-430.0,0.00016994,2]
[364200807,1749040235751,-621.79111389,0.00016994,2]
[364200808,1749040235761,-440.0,0.00016994,2]
[364200809,1749040235771,-303.94458186,0.00016994,2]
[364200810,1749040235781,-358.46512475,0.00016994,2]
[364200811,1749040235791,-430.0,0.00016994,2]
[364200812,1749040235801,-430.0,0.00016994,2]
[364200813,1749040235811,-437.97430761,0.00016994,2]
[364200814,1749040235822,-291.79552883,0.00016994,2]
[364200815,1749040235832,-201.05149936,0.00016994,2]
[364200816,1749040235842,-440.0,0.00016994,2]
[364200817,1749040235851,-440.0,0.00016994,2]
[364200818,1749040235861,-430.0,0.00016994,2]
[364200819,1749040235871,-430.0,0.00016994,2]
[364200820,1749040235881,-293.62006798,0.00016994,2]
[364200821,1749040235891,-556.75555567,0.00016994,2]
[364200822,1749040235901,-432.10339866,0.00016994,2]
[364200823,1749040235911,-430.0,0.00016994,2]
[364200824,1749040235922,-440.0,0.00016994,2]
[364200825,1749040235932,-440.0,0.00016994,2]
[364200826,1749040235941,-440.0,0.00016994,2]
[364200827,1749040235952,-440.0,0.00016994,2]
[364200828,1749040235961,-430.0,0.00016994,2]
[364200829,1749040235973,-440.0,0.00016994,2]
[364200830,1749040235985,-430.0,0.00016994,2]
[364200831,1749040235996,-373.0676339,0.00016994,2]
[364200832,1749040236007,-368.32170513,0.00016994,2]
[364200833,1749040236017,-440.0,0.00016994,2]
[364200834,1749040236027,-430.0,0.00016994,2]
[364200835,1749040236037,-918.8,0.00016994,2]
[364200836,1749040236046,-440.0,0.00016994,2]
[364200837,1749040236056,-430.0,0.00016994,2]
[364200838,1749040236065,-440.0,0.00016994,2]
[364200839,1749040236075,-440.0,0.00016994,2]
[364200840,1749040236085,-401.58514618,0.00016994,2]
[364200841,1749040236095,-440.0,0.00016994,2]
[364200842,1749040236104,-440.0,0.00016994,2]
[364200843,1749040236114,-440.0,0.00016994,2]
[364200844,1749040236124,-440.0,0.00016994,2]
[364200845,1749040236134,-430.0,0.00016994,2]
[364200846,1749040236143,-440.0,0.00016994,2]
[364200847,1749040236152,-440.0,0.00016994,2]
[364200848,1749040236162,-2263.01,0.00016994,2]
[364200849,1749040236172,-2129.27,0.00016994,2]
[364200850,1749040236181,-440.0,0.00016994,2]
[364200851,1749040236195,-440.0,0.00016994,2]
[364200852,1749040236204,-573.28,0.00016994,2]
[364200853,1749040236214,-4671.55,0.00016994,2]
[364200854,1749040236224,-470.0,0.00016994,2]
[364200855,1749040236238,-440.0,0.00016994,2]
[364200856,1749040236248,-373.02435162,0.00016994,2]
[364200857,1749040236259,-440.0,0.00016994,2]
[364200858,1749040236274,-430.0,0.00016994,2]
[364200859,1749040236287,-440.0,0.00016994,2]
[364200860,1749040236297,-440.0,0.00016994,2]
[364200861,1749040236308,-612.36,0.00016994,2]
[364200862,1749040236318,-500.0,0.00016994,2]
[364200863,1749040236329,-474.75188349,0.00016994,2]
[364200864,1749040236338,-423.6857012,0.00016994,2]
[364200865,1749040236348,-440.0,0.00016994,2]
[364200866,1749040236358,-450.0,0.00016994,2]
[364200867,1749040236368,-400.90681113,0.00016994,2]
[364200868,1749040236379,-177.81475002,0.00016994,2]
[364200869,1749040236389,-647.57,0.00016994,2]
[364200870,1749040236399,-469.22602945,0.00016994,2]
[364200871,1749040236409,-440.0,0.00016994,2]
[364200872,1749040236420,-250.97071954,0.00016994,2]
[364200873,1749040236429,-440.0,0.00016994,2]
[364200874,1749040236439,-440.0,0.00016994,2]
[364200875,1749040236449,-432.85413838,0.00016994,2]
[364200876,1749040236459,-440.0,0.00016994,2]
[364200877,1749040236469,-440.0,0.00016994,2]
[364200878,1749040236479,-576.89,0.00016994,2]
[364200879,1749040236489,-440.0,0.00016994,2]
[364200880,1749040236500,-430.0,0.00016995,2]
[364200881,1749040236510,-439.72825628,0.00016995,2]
[364200882,1749040236520,-440.0,0.00016995,2]
[364200883,1749040236530,-440.0,0.00016995,2]
[364200884,1749040236541,-440.0,0.00016995,2]
[364200885,1749040236551,-440.0,0.00016995,2]
[364200886,1749040236561,-440.0,0.00016995,2]
[364200887,1749040236572,-440.0,0.00016995,2]
[364200888,1749040236582,-500.0,0.00016995,2]
[364200889,1749040236592,-440.0,0.00016995,2]
[364200890,1749040236602,-440.0,0.00016995,2]
[364200891,1749040236612,-440.0,0.00016995,2]
[364200892,1749040236622,-440.0,0.00016995,2]
[364200893,1749040236632,-440.0,0.00016995,2]
[364200894,1749040236641,-440.0,0.00016995,2]
[364200895,1749040236651,-440.0,0.00016995,2]
[364200896,1749040236662,-440.0,0.00016995,2]
[364200897,1749040236672,-440.0,0.00016995,2]
[364200898,1749040236682,-440.0,0.00016995,2]
[364200899,1749040236692,-485.1697356,0.00016995,2]
[364200900,1749040236702,-440.0,0.00016995,2]
[364200901,1749040236712,-440.0,0.00016995,2]
[364200902,1749040236724,-440.0,0.00016995,2]
[364200903,1749040236734,-440.0,0.00016995,2]
[364200904,1749040236879,-400.0,0.00016995,2]
[364200905,1749040236889,-440.0,0.00016995,2]
[364200906,1749040236899,-440.0,0.00016995,2]
[364200907,1749040236910,-430.0,0.00016995,2]
[364200908,1749040236919,-440.0,0.00016995,2]
[364200909,1749040236929,-294.35367001,0.00016995,2]
[364200910,1749040236939,-440.0,0.00016995,2]
[364200911,1749040236949,-430.0,0.00016995,2]
[364200912,1749040236958,-440.0,0.00016995,2]
[364200913,1749040236968,-440.0,0.00016995,2]
[364200914,1749040236977,-440.0,0.00016995,2]
[364200915,1749040236987,-440.0,0.00016995,2]
[364200916,1749040236996,-440.0,0.00016995,2]
[364200917,1749040237006,-320.0,0.00016995,2]
[364200918,1749040237016,-440.0,0.00016995,2]
[364200919,1749040237025,-440.0,0.00016995,2]
[364200920,1749040237035,-500.0,0.00016995,2]
[364200921,1749040237045,-440.0,0.00016995,2]
[364200922,1749040237055,-440.0,0.00016995,2]
[364200923,1749040237064,-440.0,0.00016996,2]
[364200924,1749040237075,-490.0,0.00016996,2]
[364200925,1749040237085,-450.09332644,0.00016996,2]
[364200926,1749040237096,-430.0,0.00016996,2]
[364200927,1749040237106,-440.0,0.00016996,2]
[364200928,1749040237115,-430.0,0.00016996,2]
[364200929,1749040237125,-440.0,0.00016996,2]
[364200930,1749040237136,-450.0,0.00016996,2]
[364200931,1749040237146,-434.85188377,0.00016996,2]
[364200932,1749040237155,-450.0,0.00016996,2]
[364200933,1749040237165,-430.0,0.00016996,2]
[364200934,1749040237174,-447.0,0.00016996,2]
[364200935,1749040237183,-428.08581854,0.00016996,2]
[364200936,1749040237196,-440.0,0.00016996,2]
[364200937,1749040237205,-434.37216938,0.00016996,2]
[364200938,1749040237215,-430.0,0.00016996,2]
[364200939,1749040237224,-338.69550036,0.00016996,2]
[364200940,1749040237235,-221.05847454,0.00016996,2]
[364200941,1749040237244,-320.0,0.00016996,2]
[364200942,1749040237254,-430.0,0.00016996,2]
[364200943,1749040237263,-440.0,0.00016996,2]
[364200944,1749040237273,-549.30756607,0.00016996,2]
[364200945,1749040237283,-440.0,0.00016996,2]
[364200946,1749040237293,-430.0,0.00016996,2]
[364200947,1749040237302,-375.27253663,0.00016996,2]
[364200948,1749040237311,-440.0,0.00016996,2]
[364200949,1749040237322,-440.0,0.00016996,2]
[364200950,1749040237332,-500.0,0.00016996,2]
[364200951,1749040237342,-440.0,0.00016996,2]
[364200952,1749040237352,-440.0,0.00016996,2]
[364200953,1749040237362,-440.0,0.00016996,2]
[364200954,1749040237371,-440.0,0.00016996,2]
[364200955,1749040237381,-430.0,0.00016996,2]
[364200956,1749040237390,-430.0,0.00016996,2]
[364200957,1749040237400,-440.0,0.00016996,2]
[364200958,1749040237410,-430.0,0.00016996,2]
[364200959,1749040237419,-440.0,0.00016996,2]
[364200960,1749040237429,-430.0,0.00016996,2]
[364200961,1749040237439,-430.0,0.00016996,2]
[364200962,1749040237450,-440.0,0.00016996,2]
[364200963,1749040237460,-440.0,0.00016996,2]
[364200964,1749040237470,-430.0,0.00016996,2]
[364200965,1749040237480,-440.0,0.00016996,2]
[364200966,1749040237489,-440.0,0.00016996,2]
[364200967,1749040237499,-440.0,0.00016996,2]
[364200968,1749040237509,-440.0,0.00016996,2]
[364200969,1749040237519,-440.0,0.00016996,2]
[364200970,1749040237528,-434.33179113,0.00016996,2]
[364200971,1749040237538,-440.0,0.00016996,2]
[364200972,1749040237549,-440.0,0.00016996,2]
[364200973,1749040237559,-430.0,0.00016996,2]
[364200974,1749040237568,-440.0,0.00016996,2]
[364200975,1749040237579,-403.63718952,0.00016996,2]
[364200976,1749040237589,-440.0,0.00016996,2]
[364200977,1749040237599,-440.0,0.00016996,2]
[364200978,1749040237609,-440.0,0.00016996,2]
[364200979,1749040237619,-430.0,0.00016996,2]
[364200980,1749040237628,-165.91,0.00016996,2]
[364200981,1749040237638,-400.0,0.00016996,2]
[364200982,1749040237647,-440.0,0.00016996,2]
[364200983,1749040237658,-430.0,0.00016996,2]
[364200984,1749040237668,-270.14366694,0.00016996,2]
[364200985,1749040237677,-440.0,0.00016996,2]
[364200986,1749040237687,-630.68,0.0001726,2]
[364200987,1749040237697,-440.0,0.0001726,2]
[364200988,1749040237706,-1157.86,0.0001726,2]
[364200989,1749040237716,-440.0,0.0001726,2]
[364200990,1749040237726,-440.0,0.0001726,2]
[364200991,1749040237736,-1222.61,0.0001726,2]
[364200992,1749040237746,-2230.4,0.0001726,2]
[364200993,1749040237756,-440.0,0.0001726,2]
[364200994,1749040237766,-440.0,0.0001726,2]
[364200995,1749040237775,-440.0,0.0001726,2]
[364200996,1749040237783,-440.0,0.0001726,2]
[364200997,1749040237792,-440.0,0.0001726,2]
[364200998,1749040237802,-440.0,0.0001726,2]
[364200999,1749040237812,-440.0,0.0001726,2]
[364201000,1749040237823,-440.0,0.0001726,2]
[364201001,1749040237834,-440.0,0.0001726,2]
[364201002,1749040237844,-440.0,0.0001726,2]